bitfinex/quotes_ETHUSD_20240711
["timestamp","ask_amount","ask_price","bid_price","bid_amount"]
[1720657162842,5.83959906,3096.9,3095.9,4.085956]
[1720657162843,5.83959906,3096.9,3096.1,0.44945516]
[1720657163145,0.05790608,3096.5,3096.1,0.44945516]
[1720657163384,5.83959906,3096.9,3096.1,0.44945516]
[1720657163534,0.05787281,3096.4,3096.1,0.44945516]
[1720657163734,5.83959906,3096.9,3096.1,0.44945516]
[1720657163933,0.0578038,3096.3,3096.1,0.44945516]
[1720657164174,5.83959906,3096.9,3096.1,0.44945516]
[1720657164636,0.0579173,3096.8,3096.1,0.44945516]
[1720657164842,0.0579173,3096.8,3096.2,0.36794252]
[1720657166851,0.0579173,3096.8,3095.9,4.085946]
[1720657167642,0.0579173,3096.8,3096.0,0.06458979]
[1720657168436,0.0579173,3096.8,3096.1,3.22978]
[1720657168753,0.0579173,3096.8,3096.3,3.22965]
[1720657169147,5.83959906,3097.6,3096.5,1.897]
[1720657169381,12.47,3098.0,3096.5,1.897]
[1720657169382,5.83959906,3098.0,3096.6,0.42883]
[1720657169550,0.05627962,3097.5,3096.7,3.22917]
[1720657169752,6.1772623,3098.0,3096.7,3.22917]
[1720657169966,0.05629994,3097.4,3096.7,3.22917]
[1720657170286,0.05626668,3097.3,3096.7,3.22917]
[1720657170469,3.0,3097.9,3096.8,0.3658]
[1720657170645,6.1772623,3098.0,3096.8,3.22913]
[1720657170646,0.05623342,3097.2,3096.8,3.22913]
[1720657170846,6.1772623,3098.0,3096.8,3.22913]
[1720657171057,0.05628517,3097.1,3096.8,3.22913]
[1720657171274,6.1772623,3098.0,3096.8,3.22913]
[1720657171451,0.05635479,3097.0,3096.8,3.22913]
[1720657171683,6.1772623,3098.0,3096.8,4.08647927]
[1720657171882,6.1772623,3098.0,3096.9,5.12603]
[1720657172084,5.83959906,3098.4,3097.3,3.2286]
[1720657172290,2.4949,3098.7,3097.3,3.2286]
[1720657172648,0.33755811,3098.6,3097.3,3.2286]
[1720657172846,0.28324581,3098.5,3097.3,3.2286]
[1720657176647,0.28324581,3098.5,3097.4,1.12395775]
[1720657176862,0.28324581,3098.5,3097.3,10.04017842]
[1720657177077,0.28324581,3098.5,3097.4,3.22851]
[1720657177283,0.28324581,3098.5,3097.4,3.29307159]
[1720657177598,0.28324581,3098.5,3097.5,1.010465]
[1720657177749,3.33755811,3098.6,3097.5,4.238865]
[1720657178085,3.0,3098.6,3097.5,4.238865]
[1720657178277,5.4949,3098.7,3097.5,4.238865]
[1720657178652,3.0,3098.7,3097.5,4.238865]
[1720657178852,0.88395991,3098.6,3097.5,4.238865]
[1720657179079,3.88395991,3098.6,3097.5,4.238865]
[1720657179292,3.88395991,3098.6,3097.6,3.2283]
[1720657179496,0.88395991,3098.6,3097.6,3.2283]
[1720657179662,5.83959906,3098.8,3097.7,3.29273676]
[1720657179870,5.83959906,3098.8,3097.7,3.22818]
[1720657180047,5.83959906,3098.8,3097.7,6.45628]
[1720657180691,5.83959906,3098.8,3097.8,3.22809]
[1720657181008,5.83959906,3098.8,3097.9,0.645619]
[1720657181165,0.55,3098.7,3097.9,0.645619]
[1720657181556,5.83959906,3098.8,3097.9,0.645619]
[1720657181779,5.83959906,3098.8,3097.5,3.22839]
[1720657181981,5.83959906,3098.8,3098.1,3.22776]
[1720657182301,2.3756,3099.1,3098.0,3.22781]
[1720657183036,3.0,3099.1,3098.1,3.22776]
[1720657183999,5.83959906,3099.2,3098.2,3.22765]
[1720657184286,0.55,3099.1,3098.3,0.322765]
[1720657184482,5.83959906,3099.2,3098.3,0.322765]
[1720657185193,0.05398842,3099.1,3098.3,3.550325]
[1720657186005,0.55,3099.0,3098.3,3.550325]
[1720657186332,0.05392199,3098.9,3098.3,3.61486852]
[1720657186481,0.55,3098.8,3098.4,0.68424485]
[1720657186682,0.60388877,3098.8,3098.4,0.68424485]
[1720657187298,0.60388877,3098.8,3098.4,3.91170485]
[1720657188018,0.60388877,3098.8,3098.3,3.22757]
[1720657188216,0.60388877,3098.8,3097.6,2.4715]
[1720657188433,0.60388877,3098.8,3097.6,5.69974]
[1720657188791,0.60388877,3098.8,3097.7,3.22818]
[1720657189421,0.60388877,3098.8,3097.6,5.69979]
[1720657189731,2.93728877,3098.8,3097.7,0.569979]
[1720657193023,3.0,3098.7,3097.3,5.12558]
[1720657193220,0.55,3098.6,3097.4,3.0]
[1720657193523,0.60346556,3098.6,3097.4,3.22841]
[1720657193852,0.60346556,3098.6,3097.4,6.45683]
[1720657194031,0.60346556,3098.6,3097.5,0.835383]
[1720657194700,0.60346556,3098.6,3097.5,4.063783]
[1720657196516,0.60346556,3098.6,3097.6,3.22829]
[1720657196836,0.60346556,3098.6,3097.7,3.22813]
[1720657197140,0.60346556,3098.6,3097.7,3.29268269]
[1720657197338,0.60346556,3098.6,3097.8,0.65209727]
[1720657197937,0.60346556,3098.6,3097.6,6.45651]
[1720657198142,0.60346556,3098.6,3097.6,3.22822]
[1720657198311,0.60346556,3098.6,3097.6,6.45644]
[1720657199109,0.60346556,3098.6,3097.7,3.22818]
[1720657200742,0.60346556,3098.6,3097.7,0.06455351]
[1720657200947,0.05346556,3098.6,3097.8,1.12381604]
[1720657201105,8.11239906,3099.2,3098.1,3.22777]
[1720657201310,0.05141575,3098.5,3098.1,3.22777]
[1720657201537,5.83959906,3098.9,3098.1,3.22777]
[1720657201756,0.05137497,3098.4,3098.1,3.22777]
[1720657201936,5.83959906,3098.9,3098.1,3.29231567]
[1720657202129,0.05134174,3098.3,3098.2,3.55690157]
[1720657202329,5.83959906,3098.9,3098.2,3.55690157]
[1720657202536,0.04994421,3098.8,3098.2,3.55690157]
[1720657203048,0.04994421,3098.8,3098.3,3.22755]
[1720657203248,0.04994421,3098.8,3098.3,3.29208834]
[1720657203555,5.83959906,3099.3,3098.3,3.29208834]
[1720657203556,5.83959906,3099.3,3098.6,3.22719]
[1720657203718,0.04990526,3098.7,3098.6,3.22719]
[1720657204218,2.48,3099.6,3098.6,3.22719]
[1720657204632,0.05011748,3099.5,3098.6,3.22719]
[1720657204830,3.05011748,3099.5,3098.6,3.29172561]
[1720657205031,0.55,3099.4,3098.7,0.84159956]
[1720657205238,0.55,3099.4,3098.8,0.06453436]
[1720657205456,0.05010954,3099.3,3098.8,0.06453436]
[1720657205662,0.55,3099.2,3098.7,4.06874956]
[1720657206027,0.0500431,3099.1,3098.7,4.06874956]
[1720657206226,0.55,3099.0,3098.7,4.06874956]
[1720657206429,0.55,3099.0,3098.8,0.40687496]
[1720657206725,0.04997666,3098.9,3098.8,0.40687496]
[1720657207034,0.59997666,3098.9,3098.8,0.40687496]
[1720657208188,0.59997666,3098.9,3098.4,2.04744726]
[1720657208336,0.55,3098.8,3098.4,0.36213199]
[1720657208540,0.55,3098.8,3098.2,1.68531527]
[1720657208764,0.55,3098.8,3098.3,4.3511924]
[1720657208967,0.55,3098.8,3098.3,3.22756]
[1720657209189,0.55,3098.8,3098.4,3.02061739]
[1720657209337,0.55,3098.8,3098.5,0.79334927]
[1720657211067,0.55,3098.8,3098.4,1.897]
[1720657211594,0.55,3098.8,3098.3,1.68531527]
[1720657211880,0.55,3098.8,3098.4,1.12360746]
[1720657212396,0.55,3098.8,3098.0,2.90828562]
[1720657212397,2.9245,3098.8,3098.1,1.68541495]
[1720657212707,2.9245,3098.8,3098.0,2.57205705]
[1720657212708,0.29245,3098.7,3097.8,1.12381604]
[1720657212902,3.34237303,3098.7,3097.8,1.12381604]
[1720657213084,0.55,3098.6,3097.8,1.12381604]
[1720657213393,0.04985657,3098.5,3097.8,1.12381604]
[1720657213698,0.55,3098.4,3097.8,1.12381604]
[1720657213916,0.55,3098.4,3097.8,1.43849626]
[1720657214087,0.0497901,3098.3,3097.8,1.43849626]
[1720657214271,0.55,3098.2,3097.8,1.43849626]
[1720657214594,0.55,3098.2,3097.9,2.8095745]
[1720657214790,0.55,3098.2,3097.8,1.43849626]
[1720657214999,0.55,3098.2,3097.9,1.33526833]
[1720657215180,0.55,3098.2,3097.9,0.21143937]
[1720657215386,0.55,3098.2,3098.0,1.12383472]
[1720657215699,0.55,3098.2,3097.9,0.21143937]
[1720657215885,0.55,3098.2,3098.0,1.12382613]
[1720657216082,0.55,3098.2,3097.9,0.21143937]
[1720657216410,0.55,3098.2,3098.0,1.6857404]
[1720657216600,8.25069906,3099.2,3098.0,2.36271119]
[1720657216763,5.83959906,3099.2,3098.3,3.22748]
[1720657216962,0.04975616,3099.1,3098.6,3.22725]
[1720657217168,5.83959906,3099.5,3098.7,2.58824839]
[1720657217473,0.04993247,3099.4,3098.8,1.12355525]
[1720657217797,0.04993247,3099.4,3098.7,4.12989274]
[1720657218000,0.04993247,3099.4,3098.8,2.80889468]
[1720657218160,0.04993247,3099.4,3098.9,3.99484148]
[1720657218366,0.04993247,3099.4,3099.0,1.18800842]
[1720657218565,0.04993247,3099.4,3099.0,4.41483842]
[1720657218766,0.04993247,3099.4,3099.3,1.897]
[1720657219073,5.83959906,3100.0,3099.4,3.22634]
[1720657219422,5.83959906,3100.0,3099.6,3.22621]
[1720657219763,5.83959906,3100.0,3099.7,1.68470489]
[1720657219999,5.83959906,3100.0,3099.6,3.22621]
[1720657220796,5.83959906,3100.0,3099.7,1.12314359]
[1720657220983,5.83959906,3100.0,3099.6,3.22621]
[1720657221184,5.83959906,3100.0,3099.7,1.58216474]
[1720657221444,5.83959906,3100.0,3099.7,0.45901338]
[1720657221588,5.83959906,3100.0,3099.3,2.5736409]
[1720657221589,8.24809906,3100.0,3099.3,0.6766409]
[1720657221786,8.24809906,3100.0,3099.3,1.68492045]
[1720657222027,0.55,3099.9,3099.2,4.57858201]
[1720657222328,0.55,3099.9,3099.2,6.26355844]
[1720657222489,0.55,3099.9,3099.3,0.62635584]
[1720657222890,0.55,3099.9,3099.2,1.35195201]
[1720657223485,0.55,3099.9,3099.0,2.24774861]
[1720657223813,0.33752058,3099.8,3098.7,1.3532879]
[1720657224013,0.55,3099.7,3098.7,1.3532879]
[1720657229990,0.05053373,3099.6,3098.7,1.3532879]
[1720657230190,0.55,3099.5,3098.8,0.66074805]
[1720657230827,0.05049045,3099.4,3098.8,0.66074805]
[1720657230993,0.55,3099.3,3098.8,0.66074805]
[1720657231389,0.05042402,3099.2,3098.8,0.66074805]
[1720657231590,0.55,3099.1,3098.7,1.3532879]
[1720657231800,0.55,3099.1,3098.7,1.01578877]
[1720657232039,0.05014845,3099.0,3098.7,1.01578877]
[1720657232197,0.55,3098.9,3098.7,1.01578877]
[1720657232527,0.09093006,3098.8,3098.7,1.01578877]
[1720657232747,0.64093006,3098.8,3098.7,1.01578877]
[1720657234847,2.91993006,3098.8,3098.7,1.01578877]
[1720657235019,6.21192307,3098.8,3098.7,1.01578877]
[1720657236197,9.61092307,3098.8,3098.7,1.01578877]
[1720657236398,9.61092307,3098.8,3098.7,0.67828877]
[1720657236837,10.72949278,3098.8,3098.7,0.67828877]
[1720657237025,10.72949278,3098.8,3098.6,2.02701264]
[1720657237026,12.62649278,3098.8,3098.6,2.02701264]
[1720657237237,9.18406903,3098.7,3098.0,1.35074816]
[1720657237400,3.399,3098.3,3098.0,1.35074816]
[1720657237605,5.6944,3098.1,3098.0,1.35074816]
[1720657237831,8.6944,3098.1,3098.0,1.35074816]
[1720657238025,8.7841938,3098.1,3098.0,1.35074816]
[1720657238225,9.66261318,3098.1,3098.0,1.35074816]
[1720657238742,10.0002527,3098.1,3098.0,1.35074816]
[1720657239350,10.5502527,3098.1,3098.0,1.35074816]
[1720657239991,7.1512527,3098.1,3098.0,1.35074816]
[1720657240641,3.97743332,3098.1,3098.0,1.35074816]
[1720657240840,0.97743332,3098.1,3098.0,1.35074816]
[1720657241271,0.42743332,3098.1,3098.0,1.35074816]
[1720657243152,0.97743332,3098.1,3098.0,1.35074816]
[1720657245149,0.97743332,3098.1,3096.8,3.22912]
[1720657245362,0.97743332,3098.1,3096.9,0.552922]
[1720657245363,0.55,3098.0,3096.9,0.552922]
[1720657245550,0.08978402,3097.9,3096.9,0.552922]
[1720657245885,0.55,3097.8,3096.9,0.552922]
[1720657246387,0.55,3097.8,3097.1,3.22881]
[1720657248141,0.08970119,3097.7,3097.1,3.22881]
[1720657248368,3.0,3098.3,3097.2,3.551571]
[1720657248559,0.63997649,3098.2,3097.2,3.551571]
[1720657250104,0.63997649,3098.2,3097.4,2.2692]
[1720657250545,0.08997649,3098.2,3097.5,0.06455244]
[1720657250745,5.83959906,3098.8,3097.8,3.22809]
[1720657250988,0.09039768,3098.7,3097.9,0.06454786]
[1720657251550,5.83959906,3099.2,3098.0,3.22778]
[1720657251754,0.09061983,3099.1,3097.8,2.3006]
[1720657252789,0.09061983,3099.1,3097.6,2.76137524]
[1720657252790,2.4221,3099.0,3097.6,0.23337524]
[1720657252987,1.19212692,3098.9,3097.6,0.23337524]
[1720657253172,4.19212692,3098.9,3097.6,0.23337524]
[1720657254645,3.64085494,3098.9,3097.6,0.23337524]
[1720657254878,3.09085494,3098.9,3097.6,5.98962524]
[1720657255086,3.09085494,3098.9,3097.9,3.22798]
[1720657255261,0.09085494,3098.9,3098.1,3.22777]
[1720657255461,0.09085494,3098.9,3098.2,3.29217961]
[1720657255661,5.83959906,3099.2,3098.3,0.39375513]
[1720657255991,5.83959906,3099.2,3098.3,3.62131513]
[1720657256195,0.08828643,3099.1,3098.3,3.62131513]
[1720657256378,0.08828643,3099.1,3098.5,5.5735]
[1720657256690,5.83959906,3099.5,3098.6,0.06453206]
[1720657256848,0.08816913,3099.0,3098.7,0.56380321]
[1720657257049,5.83959906,3099.5,3098.7,0.56380321]
[1720657257390,0.088186,3099.4,3098.8,0.06453171]
[1720657257693,0.088186,3099.4,3098.7,3.79089321]
[1720657258477,0.088186,3099.4,3098.8,2.59252728]
[1720657258685,0.088186,3099.4,3098.9,3.86522205]
[1720657258907,5.83959906,3099.5,3099.0,3.29129434]
[1720657259131,0.08556714,3099.3,3099.1,3.22668]
[1720657259279,0.08559904,3099.4,3099.1,3.22668]
[1720657259480,5.83959906,3100.3,3099.1,3.22668]
[1720657259682,5.83959906,3100.3,3099.2,3.549298]
[1720657259997,0.08584342,3100.2,3099.2,3.549298]
[1720657260613,0.08584342,3100.2,3099.3,3.22652]
[1720657261783,0.08584342,3100.2,3099.4,5.50152]
[1720657262013,0.08584342,3100.2,3099.5,0.06451251]
[1720657262217,18.30959906,3100.8,3099.9,3.22584]
[1720657262425,0.08638694,3100.1,3100.0,0.06450291]
[1720657262593,5.83959906,3101.1,3099.9,3.29034347]
[1720657262797,2.4209,3101.3,3099.9,3.29034347]
[1720657262798,0.08653824,3101.0,3099.9,3.29034347]
[1720657263029,2.4209,3101.3,3099.9,3.22584]
[1720657263242,2.4209,3101.3,3099.7,3.22604]
[1720657263243,0.08643778,3100.9,3099.4,2.2751]
[1720657263387,2.3907,3100.8,3099.2,3.549258]
[1720657263738,2.3907,3100.8,3099.1,1.6846579]
[1720657263739,0.08625381,3100.7,3099.1,1.6846579]
[1720657264033,0.55,3100.6,3099.1,4.9113879]
[1720657264252,0.55,3100.6,3099.2,3.22663]
[1720657264430,0.08629596,3100.5,3099.2,3.22663]
[1720657264724,0.55,3100.4,3099.2,3.22663]
[1720657264928,0.55,3100.4,3099.3,0.49112879]
[1720657265083,0.08623221,3100.3,3099.3,0.49112879]
[1720657265283,0.55,3100.2,3099.3,0.49112879]
[1720657265505,0.08616845,3100.1,3099.3,0.49112879]
[1720657265706,0.55,3100.0,3099.3,0.49112879]
[1720657266017,0.08610469,3099.9,3099.4,0.37177588]
[1720657266769,5.83959906,3100.4,3099.4,0.37177588]
[1720657266900,0.08603217,3099.8,3099.5,3.22625]
[1720657267239,0.08599039,3099.7,3099.5,3.22625]
[1720657267539,0.08599039,3099.7,3099.4,0.37177588]
[1720657267752,5.83959906,3100.4,3099.5,0.40894247]
[1720657267930,0.08626297,3100.3,3099.5,0.40894247]
[1720657269306,0.08626297,3100.3,3099.5,3.63523247]
[1720657269939,0.08626297,3100.3,3099.6,3.22619]
[1720657270813,8.23029906,3100.8,3099.6,3.22619]
[1720657271013,0.6366629,3100.7,3099.7,3.5960736]
[1720657272654,0.6366629,3100.7,3099.7,5.6140736]
[1720657272808,0.6366629,3100.7,3099.7,2.3879636]
[1720657273009,0.6366629,3100.7,3099.7,2.018]
[1720657274039,0.6366629,3100.7,3099.7,5.24411]
[1720657274242,0.6366629,3100.7,3099.8,3.22601]
[1720657274560,0.6366629,3100.7,3099.8,3.29051328]
[1720657276011,0.0866629,3100.7,3099.9,3.22589]
[1720657276208,0.0866629,3100.7,3100.0,0.71614075]
[1720657276621,0.0866629,3100.7,3100.1,2.018]
[1720657277109,8.83959906,3101.1,3100.1,2.018]
[1720657277310,0.08654016,3100.6,3100.1,2.018]
[1720657277524,0.55,3101.0,3100.1,2.018]
[1720657277702,0.55,3101.0,3100.2,0.26696403]
[1720657277903,0.08663575,3100.9,3100.2,0.26696403]
[1720657278103,0.55,3100.8,3100.2,0.26696403]
[1720657278409,0.08657203,3100.7,3100.2,0.26696403]
[1720657285434,0.08657203,3100.7,3100.1,2.018]
[1720657289720,0.08657203,3100.7,3100.2,0.06450057]
[1720657290024,0.0865054,3100.6,3100.2,0.06450057]
[1720657290164,5.83959906,3101.1,3100.2,0.06450057]
[1720657290363,0.63663287,3101.0,3100.2,0.06450057]
[1720657290604,0.63663287,3101.0,3100.3,0.20825006]
[1720657290806,0.63663287,3101.0,3100.3,0.27274747]
[1720657291805,0.08663287,3101.0,3100.4,2.0824974]
[1720657292313,0.08663287,3101.0,3100.8,2.018]
[1720657292513,0.08663287,3101.0,3100.9,0.26628497]
[1720657292822,0.08094157,3101.0,3100.9,0.26628517]
[1720657293022,5.83959906,3102.0,3100.9,3.49115517]
[1720657293621,14.8947,3102.1,3101.4,2.018]
[1720657293622,0.08122853,3101.9,3101.4,2.018]
[1720657293782,2.4247,3102.1,3101.5,0.06447652]
[1720657293986,0.33753049,3101.9,3101.5,0.06447652]
[1720657294924,0.33753049,3101.9,3101.4,2.2198]
[1720657295281,0.33753049,3101.9,3101.4,2.018]
[1720657295480,2.39962632,3101.8,3101.1,1.68378319]
[1720657295680,2.39962632,3101.8,3101.2,1.12255105]
[1720657295926,0.55,3101.7,3101.0,0.67249539]
[1720657296086,0.55,3101.7,3100.9,1.68378319]
[1720657296281,0.08135494,3101.6,3100.8,1.34499078]
[1720657296505,0.55,3101.5,3100.8,1.34499078]
[1720657296927,0.08119651,3101.4,3100.8,1.34499078]
[1720657297519,0.55,3101.3,3100.7,1.68400393]
[1720657297819,0.0811328,3101.2,3100.7,1.68400393]
[1720657298020,0.55,3101.3,3100.7,2.02083308]
[1720657298178,0.08103929,3101.2,3100.7,2.02083308]
[1720657298379,0.55,3101.6,3100.8,1.12277913]
[1720657298625,0.08116402,3101.5,3100.7,2.69436224]
[1720657298787,0.08116402,3101.5,3100.8,1.12273399]
[1720657298987,0.08116402,3101.5,3100.9,0.38170962]
[1720657299441,2.3184,3101.8,3101.0,3.14072289]
[1720657299728,0.07841735,3101.4,3101.1,1.12272289]
[1720657300018,2.3184,3101.8,3101.2,1.12272289]
[1720657300019,0.07851446,3101.3,3101.2,1.12272289]
[1720657300179,2.3184,3101.8,3101.0,2.69152916]
[1720657300383,0.07859054,3101.7,3101.1,0.62980388]
[1720657301703,0.07859054,3101.7,3101.4,2.018]
[1720657301928,0.07859054,3101.7,3101.5,3.22422]
[1720657302118,0.33753049,3101.9,3101.5,3.28868848]
[1720657302392,0.33753049,3101.9,3101.5,3.22422]
[1720657302623,0.33753049,3101.9,3101.6,0.524222]
[1720657302791,0.07588621,3101.8,3101.6,0.524222]
[1720657302987,0.33753049,3101.9,3101.7,0.0644687]
[1720657303203,0.33753049,3101.9,3101.8,2.018]
[1720657303405,0.33753049,3101.9,3101.8,2.08246259]
[1720657303608,2.2775,3102.6,3101.8,2.08246259]
[1720657303809,0.33744648,3102.5,3101.8,2.08246259]
[1720657304009,0.33744648,3102.5,3101.9,0.53064326]
[1720657304329,0.33744648,3102.5,3102.2,2.018]
[1720657304636,0.33744648,3102.5,3102.3,0.0644581]
[1720657306303,0.33744648,3102.5,3102.0,0.064459]
[1720657306508,0.33744648,3102.5,3102.2,0.064459]
[1720657307125,0.07641593,3102.4,3102.2,0.064459]
[1720657307639,0.07641593,3102.4,3101.9,0.06445937]
[1720657307791,0.07641593,3102.4,3102.0,0.50824594]
[1720657307995,0.33744648,3102.5,3102.1,0.06445937]
[1720657308221,0.07641593,3102.4,3102.1,0.06445937]
[1720657308432,0.33744648,3102.5,3102.1,0.06445937]
[1720657308642,0.07641593,3102.4,3102.1,0.06445937]
[1720657309001,0.33744648,3102.5,3102.1,0.06445937]
[1720657309309,0.07641593,3102.4,3102.0,0.50824594]
[1720657309739,0.33744648,3102.5,3102.0,0.50824594]
[1720657310029,0.07665941,3102.4,3102.0,0.50824594]
[1720657310245,0.33744648,3102.5,3102.0,0.50824594]
[1720657310611,0.07665941,3102.4,3102.0,0.50824594]
[1720657310808,0.33744648,3102.5,3102.2,2.018]
[1720657311011,0.07667996,3102.4,3102.2,2.018]
[1720657311213,0.33744648,3102.5,3102.2,2.018]
[1720657311421,0.07667996,3102.4,3102.2,2.018]
[1720657311619,0.33744648,3102.5,3102.3,0.23911986]
[1720657311837,0.33744648,3102.5,3102.3,0.30357411]
[1720657313737,2.4787,3103.1,3102.3,0.30357411]
[1720657314102,2.4787,3103.1,3102.3,0.23911986]
[1720657314103,0.07698964,3103.0,3102.3,0.23911986]
[1720657314304,0.07698964,3103.0,3102.4,0.55450013]
[1720657315513,8.83959906,3103.4,3102.4,0.55450013]
[1720657315849,3.0,3103.4,3102.4,0.55450013]
[1720657316029,0.07707174,3103.3,3102.4,0.55450013]
[1720657316230,2.2526,3103.5,3102.4,0.55450013]
[1720657316543,0.62710355,3103.4,3102.4,0.55450013]
[1720657316743,3.62710355,3103.4,3102.3,0.23911986]
[1720657318934,3.62710355,3103.4,3102.3,2.63836996]
[1720657320047,0.62710355,3103.4,3102.3,2.63836996]
[1720657320653,0.07710355,3103.4,3102.3,2.63836996]
[1720657320939,0.07710355,3103.4,3102.6,2.018]
[1720657321102,0.07710355,3103.4,3102.7,0.26624508]
[1720657321304,0.07710355,3103.4,3102.8,0.0644453]
[1720657321632,0.07710355,3103.4,3103.0,2.018]
[1720657321803,5.83959906,3103.8,3103.1,0.06443994]
[1720657322004,0.07769468,3103.7,3103.1,0.06443994]
[1720657322232,5.83959906,3104.2,3103.4,2.018]
[1720657322545,0.07505476,3104.1,3103.5,0.06443009]
[1720657322840,0.07505476,3104.1,3103.4,2.018]
[1720657324006,0.33744438,3104.0,3103.4,2.018]
[1720657324206,0.07474164,3103.9,3103.4,2.018]
[1720657324454,0.07474164,3103.9,3103.5,0.2018]
[1720657325753,0.07474164,3103.9,3103.6,0.06443073]
[1720657326068,0.33744438,3104.0,3103.6,0.06443073]
[1720657326356,0.33744438,3104.0,3103.5,0.2018]
[1720657326665,0.07474568,3103.9,3103.5,0.2018]
[1720657326862,0.07474568,3103.9,3103.6,0.22198]
[1720657327160,0.33744438,3104.0,3103.6,0.22198]
[1720657327532,0.07474568,3103.9,3103.6,0.22198]
[1720657327858,0.33744438,3104.0,3103.6,0.22198]
[1720657328221,0.07474568,3103.9,3103.6,0.22198]
[1720657328541,0.33744438,3104.0,3103.6,0.22198]
[1720657328862,0.07474568,3103.9,3103.6,0.22198]
[1720657329262,0.33744438,3104.0,3103.6,0.22198]
[1720657329491,0.33744438,3104.0,3103.7,0.06442607]
[1720657329621,0.07474568,3103.9,3103.7,0.06442607]
[1720657329961,0.33744438,3104.0,3103.7,0.06442607]
[1720657330323,0.07479898,3103.9,3103.7,0.06442607]
[1720657330528,0.33744438,3104.0,3103.7,0.06442607]
[1720657331036,0.07230568,3103.9,3103.7,0.06442607]
[1720657331350,0.33744438,3104.0,3103.7,0.06442607]
[1720657331661,0.07230568,3103.9,3103.7,0.06442607]
[1720657331823,0.07230568,3103.9,3103.8,2.3039]
[1720657332029,8.21909906,3104.8,3103.8,4.64535278]
[1720657332329,0.07281811,3104.7,3103.8,4.64535278]
[1720657332569,0.07281811,3104.7,3104.2,2.018]
[1720657332728,0.33742434,3105.0,3104.2,2.018]
[1720657332928,0.33742434,3105.0,3104.3,0.2018]
[1720657333262,0.33742434,3105.0,3104.3,0.26621169]
[1720657334330,0.07298441,3104.9,3104.3,0.26621169]
[1720657335044,0.07298441,3104.9,3104.3,0.2018]
[1720657337287,0.55,3104.8,3103.6,0.22198]
[1720657337878,0.07298334,3104.7,3103.6,0.22198]
[1720657338035,0.07298334,3104.7,3104.6,2.442]
[1720657338433,0.1123247,3105.2,3104.5,2.018]
[1720657338668,0.1123247,3105.2,3104.6,0.2018]
[1720657338876,0.07066547,3105.1,3104.6,0.26620917]
[1720657339047,0.07066547,3105.1,3104.6,0.2018]
[1720657339236,0.1123247,3105.2,3104.6,0.2018]
[1720657339570,0.07059053,3105.1,3104.6,0.2018]
[1720657339863,0.06820574,3105.1,3104.7,0.28638361]
[1720657340168,0.06820574,3105.1,3104.8,0.06440372]
[1720657340479,0.1123247,3105.2,3104.7,0.22198]
[1720657340970,0.06823751,3105.1,3104.7,0.22198]
[1720657341357,0.1123247,3105.2,3104.7,0.22198]
[1720657342234,0.06840227,3105.1,3104.7,0.22198]
[1720657343147,2.2604,3105.0,3104.1,2.018]
[1720657343649,0.61831733,3104.9,3103.9,0.67078832]
[1720657344583,0.06831733,3104.9,3103.9,0.67078832]
[1720657344878,0.06831733,3104.9,3104.1,2.018]
[1720657345064,0.06831733,3104.9,3104.2,0.64254947]
[1720657345242,0.1123247,3105.2,3104.2,0.64254947]
[1720657345445,0.06835947,3105.1,3104.2,0.64254947]
[1720657346148,0.55,3105.0,3104.1,2.018]
[1720657346379,0.61830119,3105.0,3104.1,2.018]
[1720657348053,0.06830119,3105.0,3104.2,0.06441413]
[1720657348255,0.06830119,3105.0,3104.1,2.08240974]
[1720657348457,0.1123247,3105.2,3104.1,2.08240974]
[1720657348685,0.1123247,3105.2,3104.2,0.83040397]
[1720657348984,0.06839907,3105.1,3104.2,0.83040397]
[1720657349193,0.06839907,3105.1,3104.2,3.83040397]
[1720657349356,0.06839907,3105.1,3104.2,0.83040397]
[1720657351669,0.06839907,3105.1,3104.2,3.83040397]
[1720657351868,0.06839907,3105.1,3104.3,0.59128137]
[1720657352072,0.06839907,3105.1,3103.9,3.89249832]
[1720657352073,0.06839907,3105.1,3103.9,0.67078832]
[1720657352397,2.4912,3105.0,3103.9,0.67078832]
[1720657353519,0.06831507,3104.9,3104.1,2.018]
[1720657354867,0.06831507,3104.9,3104.2,2.3221]
[1720657355059,0.06831507,3104.9,3104.2,5.3221]
[1720657355382,0.06821066,3104.8,3104.4,3.22119]
[1720657355568,0.06821066,3104.8,3104.3,4.277485]
[1720657355788,0.1123247,3105.2,3104.4,3.0]
[1720657355972,0.06819815,3104.7,3104.4,3.0]
[1720657356283,0.06816637,3104.6,3104.4,3.0]
[1720657356482,0.1123247,3105.2,3104.5,0.7277405]
[1720657356681,0.06833512,3105.1,3104.5,0.7277405]
[1720657356880,0.06833512,3105.1,3104.5,3.9488405]
[1720657358080,0.06833512,3105.1,3104.5,7.1698705]
[1720657358477,0.06833512,3105.1,3104.6,3.22101]
[1720657358684,0.06833512,3105.1,3104.7,0.71697805]
[1720657358884,0.1123247,3105.2,3104.7,0.71697805]
[1720657359092,0.06833512,3105.1,3104.7,0.71697805]
[1720657359293,0.1123247,3105.2,3104.8,0.06439982]
[1720657359493,0.1123247,3105.2,3105.0,5.23857]
[1720657359700,0.1123247,3105.2,3105.1,0.58824971]
[1720657361182,0.1123247,3105.2,3105.1,0.91030052]
[1720657361981,0.1123247,3105.2,3105.1,4.13080052]
[1720657362182,0.1123247,3105.2,3105.1,7.13080052]
[1720657363722,0.1123247,3105.2,3105.1,10.35130052]
[1720657364208,2.4397,3106.6,3105.7,3.21987]
[1720657364412,2.4397,3106.6,3105.8,2.339987]
[1720657364618,2.3065,3107.1,3105.8,5.62413391]
[1720657365025,0.06915018,3107.0,3105.8,5.62413391]
[1720657365423,0.06915018,3107.0,3105.9,3.21966]
[1720657365651,0.06915018,3107.0,3106.2,2.018]
[1720657365943,0.06915018,3107.0,3106.3,0.2018]
[1720657366111,0.06915018,3107.0,3106.4,0.06436747]
[1720657366514,0.06915018,3107.0,3106.3,0.2018]
[1720657366687,2.3054,3107.5,3106.3,0.26616223]
[1720657366883,0.06939173,3107.4,3106.3,3.48534223]
[1720657367188,0.06939173,3107.4,3106.4,0.87226822]
[1720657367890,0.06939173,3107.4,3106.3,0.2018]
[1720657369586,0.55,3107.3,3106.3,0.2018]
[1720657369809,0.61936986,3107.3,3106.3,0.2018]
[1720657371199,0.06936986,3107.3,3106.4,2.4899]
[1720657371401,8.09509906,3107.9,3106.5,0.26917]
[1720657371703,0.55,3107.8,3106.5,3.26917]